bitfinex-derivatives/quotes_ETHF0:USTF0_20250929
["timestamp","ask_amount","ask_price","bid_price","bid_amount"]
[1759144601371,0.43872,4101.2,4101.1,0.7697]
[1759144601665,0.43872,4101.2,4101.1,1.0217]
[1759144602058,3.2078,4101.8,4101.2,0.4451]
[1759144602258,3.2078,4101.8,4101.1,0.252]
[1759144602259,3.85366,4101.8,4101.7,0.7697]
[1759144602458,3.85366,4101.8,4101.7,1.0217]
[1759144603067,3.64646,4101.8,4101.7,1.0217]
[1759144603668,3.85366,4101.8,4101.7,1.0217]
[1759144604769,3.64646,4101.8,4101.7,1.0217]
[1759144605670,3.85366,4101.8,4101.7,1.0217]
[1759144605977,4.40386,4101.8,4101.7,1.0217]
[1759144606171,4.07686,4101.8,4101.7,1.0217]
[1759144606377,3.85366,4101.8,4101.7,1.0217]
[1759144606677,0.43866,4101.9,4101.8,0.7697]
[1759144607272,0.64586,4101.9,4101.8,1.0217]
[1759144607673,0.43866,4101.9,4101.8,1.0217]
[1759144607973,0.43864,4102.1,4102.0,0.5777]
[1759144608177,0.43864,4102.1,4102.0,0.9023]
[1759144608371,0.64584,4102.1,4102.0,0.9023]
[1759144608577,1.19604,4102.1,4102.0,0.9023]
[1759144609078,0.86904,4102.1,4102.0,0.9023]
[1759144609278,0.64584,4102.1,4102.0,0.9023]
[1759144610375,0.64584,4102.1,4102.0,0.3246]
[1759144610376,1.19604,4102.1,4102.0,0.3246]
[1759144610579,0.43866,4101.8,4101.7,3.2078]
[1759144610881,1.19606,4101.8,4101.7,3.4598]
[1759144611377,1.19606,4101.8,4101.7,4.0069]
[1759144611771,1.19606,4101.8,4101.7,3.4598]
[1759144612277,1.19606,4101.8,4101.7,3.7844]
[1759144612578,1.19606,4101.8,4101.7,4.0069]
[1759144614186,0.86906,4101.8,4101.7,4.2295]
[1759144614373,1.09656,4102.2,4101.7,3.9049]
[1759144614576,1.19012,4102.2,4102.1,0.7728]
[1759144614776,1.19012,4102.2,4102.1,1.0248]
[1759144616480,0.86612,4102.2,4102.1,1.0248]
[1759144616681,0.43862,4102.2,4102.1,1.0248]
[1759144618376,3.2095768,4102.4,4102.1,1.0248]
[1759144618582,0.4403768,4102.4,4102.3,0.7728]
[1759144619785,0.43863,4102.1,4102.0,1.87325141]
[1759144619980,1.19013,4102.1,4102.0,1.1469]
[1759144620686,1.19013,4102.1,4102.0,0.8959]
[1759144620882,1.19013,4102.1,4102.0,1.1469]
[1759144621080,0.4275,4101.9,4101.8,0.5621]
[1759144621280,0.4275,4101.9,4101.7,4.95795141]
[1759144621281,1.19016,4101.8,4101.7,3.2078]
[1759144621480,1.19016,4101.8,4101.7,3.4598]
[1759144621784,1.19016,4101.8,4101.7,4.0219]
[1759144621983,1.19016,4101.8,4101.7,4.2326]
[1759144622389,1.19016,4101.8,4101.7,3.9806]
[1759144622581,1.19016,4101.8,4101.7,4.2326]
[1759144623285,0.43865,4101.9,4101.8,0.7728]
[1759144623786,1.19015,4101.9,4101.8,0.7728]
[1759144624182,0.43865,4101.9,4101.8,0.7728]
[1759144624379,0.65115,4101.9,4101.8,0.7728]
[1759144625584,1.19015,4101.9,4101.8,0.7728]
[1759144626384,1.19015,4101.9,4101.8,1.0248]
[1759144626882,1.19015,4101.9,4101.8,0.7728]
[1759144627081,1.19015,4101.9,4101.8,1.0238]
[1759144627584,0.86615,4101.9,4101.8,1.0238]
[1759144627791,0.65115,4101.9,4101.8,1.0238]
[1759144628989,0.43865,4101.9,4101.8,1.0238]
[1759144629190,0.43865,4102.0,4101.8,1.0238]
[1759144629386,4.07391,4102.3,4102.2,0.7728]
[1759144629686,4.07391,4102.3,4102.2,1.0238]
[1759144629897,0.86611,4102.3,4102.2,1.0238]
[1759144630193,0.43861,4102.3,4102.2,1.0238]
[1759144631687,1.19011,4102.3,4102.2,1.0238]
[1759144632294,0.86611,4102.3,4102.2,1.0238]
[1759144632588,0.43861,4102.3,4102.2,1.0238]
[1759144633183,0.43861,4102.3,4102.2,2.77395141]
[1759144633590,0.65111,4102.3,4102.2,1.0238]
[1759144634084,0.43861,4102.3,4102.2,1.0238]
[1759144634286,0.43861,4102.3,4102.2,2.77591437]
[1759144635491,0.43861,4102.3,4102.2,1.0238]
[1759144637795,1.21381,4102.3,4102.2,2.77556096]
[1759144638298,0.88881,4102.3,4102.2,2.52456096]
[1759144638597,0.66419,4102.3,4102.2,2.77556096]
[1759144638786,0.0017768,4102.4,4102.2,2.77556096]
[1759144639089,0.0017768,4102.4,4102.3,2.51656096]
[1759144639287,0.0017768,4102.4,4102.3,0.7648]
[1759144639485,0.78551,4102.9,4102.3,3.6426]
[1759144639793,0.4605,4102.9,4102.8,5.72400962]
[1759144639989,0.022,4102.9,4102.8,5.97485641]
[1759144640192,1.09609,4103.6,4102.8,5.97485641]
[1759144640193,0.325,4103.6,4102.8,4.2236]
[1759144640396,0.43846,4103.3,4103.2,0.7648]
[1759144640690,0.4413946,4103.3,4103.2,1.0158]
[1759144641091,0.6669946,4103.3,4103.2,1.0158]
[1759144642900,1.2165946,4103.3,4103.2,1.0158]
[1759144643600,0.8915946,4103.3,4103.2,1.0158]
[1759144644398,0.6669946,4103.3,4103.2,1.0158]
[1759144644799,0.4413946,4103.3,4103.2,1.0158]
[1759144645995,0.6577946,4103.3,4103.2,1.0158]
[1759144646391,0.4413946,4103.3,4103.2,1.0158]
[1759144646700,0.6577846,4103.3,4103.2,1.0158]
[1759144646900,0.8801846,4103.3,4103.2,1.0158]
[1759144647096,1.2046846,4103.3,4103.2,1.0158]
[1759144647890,1.2046846,4103.3,4103.2,1.0148]
[1759144648201,0.8801846,4103.3,4103.2,1.0148]
[1759144649696,0.6577846,4103.3,4103.2,1.0148]
[1759144649888,1.2046846,4103.3,4103.2,1.0148]
[1759144650092,0.6577846,4103.3,4103.2,1.0148]
[1759144650299,0.4413846,4103.3,4103.2,1.0148]
[1759144651802,0.0029346,4103.3,4103.2,1.0148]
[1759144652302,0.0029346,4103.3,4103.2,1.45327]
[1759144652499,0.0029346,4103.3,4103.2,3.20371556]
[1759144652804,0.0029346,4103.3,4103.2,2.76524556]
[1759144653401,0.43841,4103.8,4103.7,0.4333]
[1759144653601,0.43841,4103.8,4103.7,4.2068]
[1759144654305,0.44029246,4103.8,4103.7,4.20940722]
[1759144654800,0.65669246,4103.8,4103.7,4.20940722]
[1759144655203,1.09581,4104.6,4103.8,0.3157]
[1759144655402,0.43839,4104.0,4103.9,0.999]
[1759144655699,0.65479,4104.0,4103.9,0.749]
[1759144655900,0.65479,4104.0,4103.9,0.999]
[1759144656100,0.43839,4104.0,4103.9,0.999]
[1759144656301,0.44095267,4104.0,4103.9,0.999]
[1759144656701,0.00256267,4104.0,4103.9,0.999]
[1759144657002,0.00256267,4104.0,4103.9,0.749]
[1759144657206,0.00256267,4104.0,4103.9,0.999]
[1759144657998,0.43836,4104.3,4104.2,0.4333]
[1759144658198,0.3245,4104.8,4104.2,0.6833]
[1759144658408,0.97925,4104.3,4104.2,0.749]
[1759144658707,0.43835,4104.3,4104.2,0.999]
[1759144659008,0.4405956,4104.3,4104.2,0.749]
[1759144659198,0.4405956,4104.3,4104.2,0.999]
[1759144659399,1.2038956,4104.3,4104.2,0.749]
[1759144659599,1.2038956,4104.3,4104.2,0.999]
[1759144660608,1.20171,4103.8,4103.7,3.21040722]
[1759144660798,1.20171,4103.8,4103.7,3.46040722]
[1759144661108,1.20171,4103.8,4103.7,4.20940722]
[1759144661304,0.65481,4103.8,4103.7,4.20940722]
[1759144661604,1.20171,4103.8,4103.7,4.20940722]
[1759144662195,0.7633,4104.1,4104.0,0.2252]
[1759144662410,1.20168,4104.1,4104.0,0.4752]
[1759144662903,1.20168,4104.1,4104.0,0.7909]
[1759144663493,0.43838,4104.1,4104.0,1.1248]
[1759144663701,1.2038956,4104.3,4104.2,0.749]
[1759144663901,1.2038956,4104.3,4104.2,0.7909]
[1759144664306,0.8793956,4104.3,4104.2,0.999]
[1759144665401,0.8793956,4104.3,4104.2,4.2068]
[1759144666504,0.8793956,4104.3,4104.2,3.9568]
[1759144666704,0.8793956,4104.3,4104.2,4.2068]
[1759144668612,0.4405956,4104.3,4104.2,4.2068]
[1759144669810,0.6569956,4104.3,4104.2,4.2068]
[1759144670605,0.4405956,4104.3,4104.2,4.2068]
[1759144671807,4.30355,4104.9,4104.2,4.2068]
[1759144672007,0.87716,4104.2,4104.0,1e-05]
[1759144672211,1.20171,4103.8,4103.7,7.22e-06]
[1759144672512,1.20171,4103.8,4103.0,3.2078]
[1759144672513,0.43853,4102.6,4102.5,3.2078]
[1759144672815,1.20183,4102.6,4102.5,3.4598]
[1759144673104,1.20183,4102.6,4102.5,4.0007]
[1759144673507,0.87904185,4102.6,4102.5,4.33672395]
[1759144674206,1.19114185,4102.6,4102.5,4.00182395]
[1759144674613,1.19114185,4102.6,4102.5,4.21802395]
[1759144674917,1.19114185,4102.6,4102.5,4.35312395]
[1759144675102,0.87904185,4102.6,4102.5,4.35312395]
[1759144675414,1.19114185,4102.6,4102.5,4.00182395]
[1759144676220,1.19114185,4102.6,4102.5,3.75082395]
[1759144676516,1.19114185,4102.6,4102.5,4.00282395]
[1759144677210,1.19114185,4102.6,4102.5,3.75082395]
[1759144677419,1.19114185,4102.6,4102.5,4.00282395]
[1759144678016,1.19114185,4102.6,4102.5,4.00182395]
[1759144678713,6.19114185,4102.6,4102.5,3.46092395]
[1759144679513,6.19114185,4102.6,4102.5,3.20992395]
[1759144679816,6.19114185,4102.6,4102.5,0.25312395]
[1759144681408,1.19114185,4102.6,4102.5,0.00212395]
[1759144681613,1.17239,4102.1,4102.0,3.2078]
[1759144681802,1.17239,4102.1,4102.0,3.4588]
[1759144682516,1.17239,4102.1,4102.0,3.46060121]
[1759144684518,1.17239,4102.1,4102.0,4.00400121]
[1759144684715,1.17239,4102.1,4102.0,4.22020121]
[1759144684916,1.17239,4102.1,4102.0,3.96920121]
[1759144685118,1.17239,4102.1,4102.0,4.22020121]
[1759144685819,1.17239,4102.1,4102.0,4.35530121]
[1759144686520,1.17239,4102.1,4102.0,4.22020121]
[1759144687522,1.17239,4102.1,4102.0,4.35530121]
[1759144687820,0.86029,4102.1,4102.0,4.35530121]
[1759144688122,1.17239,4102.1,4102.0,4.35530121]
[1759144690319,1.17239,4102.1,4102.0,3.15677121]
[1759144690522,1.17243,4101.7,4101.6,0.5434]
[1759144690719,1.17243,4101.7,4101.6,0.7944]
[1759144691225,1.17243,4101.7,4101.6,0.5434]
[1759144691526,1.17243,4101.7,4101.6,0.79711128]
[1759144693828,1.17243,4101.7,4101.4,3.2078]
[1759144694128,1.19355,4101.5,4101.4,3.2078]
[1759144694325,1.19355,4101.5,4101.4,3.7617]
[1759144694625,1.19355,4101.5,4101.4,4.0127]
[1759144695126,1.19355,4101.5,4101.4,4.01575113]
[1759144695626,0.87814,4100.7,4100.6,0.3397]
[1759144695838,1.19364,4100.7,4100.6,0.5907]
[1759144696323,0.56627,4100.5,4100.4,3.422]
[1759144696530,1.32117,4100.5,4100.4,3.67533842]
[1759144697532,1.32117,4100.5,4100.4,3.89203842]
[1759144698334,1.32117,4100.5,4100.4,4.23173842]
[1759144698924,1.32117,4100.5,4100.4,1.02393842]
[1759144699331,1.32117,4100.5,4100.4,0.43323842]
[1759144699531,1.32117,4100.5,4100.4,0.68423842]
[1759144701136,1.32117,4100.5,4100.4,0.00233842]
[1759144701340,0.7549,4100.0,4099.9,3.9784]
[1759144701535,1.19372,4100.0,4099.9,4.2294]
[1759144701928,1.32122,4100.0,4099.9,3.9784]
[1759144702131,1.32122,4100.0,4099.9,4.2294]
[1759144702333,1.32122,4100.0,4099.9,3.9813635]
[1759144702629,1.32122,4100.0,4099.9,0.6848635]
[1759144702830,0.43882,4100.0,4099.9,1.0245635]
[1759144705538,0.43882,4100.0,4099.9,4.2336635]
[1759144705839,3.2078,4100.9,4100.7,0.341]
[1759144706033,3.64652,4100.9,4100.8,1.0271]
[1759144706232,3.98322,4100.9,4100.8,1.0271]
[1759144706634,4.20592,4100.9,4100.8,1.0271]
[1759144707342,4.41562,4100.9,4100.8,1.0271]
[1759144708634,3.64652,4100.9,4100.8,1.0271]
[1759144709137,4.20592,4100.9,4100.8,1.0271]
[1759144710742,4.41562,4100.9,4100.8,0.6861]
[1759144711838,4.41562,4100.9,4100.8,1.0271]
[1759144714743,3.64652,4100.9,4100.8,1.0271]
[1759144718841,3.98322,4100.9,4100.8,1.0271]
[1759144719446,0.77542,4100.9,4100.8,1.0271]
[1759144720238,0.3367,4101.3,4100.9,0.341]
[1759144720443,0.43868,4101.3,4101.2,0.7761]
[1759144720952,0.77538,4101.3,4101.2,0.7761]
[1759144721160,0.99808,4101.3,4101.2,0.7761]
[1759144721355,3.64647,4101.4,4101.3,0.7761]
[1759144721546,3.64642,4101.9,4101.8,0.7761]
[1759144721745,3.64642,4101.9,4101.8,1.0261]
[1759144721955,0.77531,4102.1,4101.9,0.341]
[1759144722157,0.99801,4102.1,4102.0,0.7761]
[1759144722548,0.99801,4102.1,4102.0,0.9013]
[1759144722549,0.5594,4102.1,4102.0,0.9013]
[1759144722754,3.2078,4102.4,4102.0,0.9013]
[1759144722755,0.43859,4102.2,4102.1,0.7761]
[1759144722955,0.99799,4102.2,4102.1,0.7761]
[1759144723156,1.20769,4102.2,4102.1,0.7761]
[1759144723652,1.20769,4102.2,4102.1,1.0261]
[1759144724752,3.2078,4102.4,4102.3,0.4351]
[1759144724955,0.43856,4102.5,4102.3,0.7761]
[1759144725150,0.43856,4102.5,4102.4,0.341]
[1759144725457,0.43856,4102.5,4102.4,0.7761]
[1759144725758,0.33841185,4102.6,4102.4,0.4351]
[1759144725957,0.44026185,4102.6,4102.5,0.9013]
[1759144726161,0.99966185,4102.6,4102.5,0.9013]
[1759144726360,0.99966185,4102.6,4102.5,0.7761]
[1759144726660,0.44026185,4102.6,4102.5,0.9013]
[1759144728455,1.43285,4103.4,4102.9,0.341]
[1759144728762,1.43285,4103.4,4103.3,0.2079]
[1759144728763,1.20756,4103.4,4103.3,0.2079]
[1759144729461,1.21046589,4103.4,4103.3,0.21084296]
[1759144730757,1.21046589,4103.4,4103.3,0.80184296]
[1759144731466,1.21046589,4103.4,4103.3,1.02904296]
[1759144733365,1.21046589,4103.4,4103.3,0.00294296]
[1759144733571,1.21046589,4103.4,4103.3,0.25294296]
[1759144735069,1.21046589,4103.4,4103.3,0.00294296]
[1759144735272,6.21046589,4103.4,4103.3,2.96e-06]
[1759144736670,0.43851,4102.9,4102.8,3.2078]
[1759144736870,0.85951,4102.9,4102.8,3.4578]
[1759144737174,1.18591,4102.9,4102.8,0.25]
[1759144737670,0.1337,4103.0,4102.3,3.4138]
[1759144737671,0.7474,4102.4,4102.3,3.4138]
[1759144737875,0.7474,4102.4,4102.3,3.6661094]
[1759144738571,1.18596,4102.4,4102.3,3.6661094]
[1759144739476,1.18596,4102.4,4102.3,4.2240094]
[1759144739772,1.18596,4102.4,4102.3,3.2101094]
[1759144739970,1.18596,4102.4,4102.3,3.4601094]
[1759144740170,1.18596,4102.4,4102.3,4.2240094]
[1759144743675,0.97436,4102.4,4102.3,4.2240094]
[1759144744180,1.18596,4102.4,4102.3,4.2240094]
[1759144744378,0.97436,4102.4,4102.3,4.2240094]
[1759144745181,0.43856,4102.4,4102.3,4.2240094]
[1759144745580,0.43856,4102.4,4102.3,9.2240094]
[1759144746275,0.43851,4102.9,4102.8,0.7639]
[1759144746468,0.43851,4102.9,4102.8,1.0139]
[1759144747475,3.6463,4103.1,4102.8,1.0139]
[1759144747677,0.43848,4103.2,4103.1,0.3353]
[1759144747974,0.43842,4103.8,4103.7,0.4286]
[1759144748178,0.76481,4103.9,4103.8,0.3353]
[1759144748378,0.43841,4103.9,4103.8,0.7639]
[1759144748685,0.43839,4104.1,4104.0,0.5595]
[1759144748977,0.44108438,4104.1,4104.0,1.1448]
[1759144750174,0.00269438,4104.1,4104.0,1.1448]
[1759144754479,0.44107438,4104.1,4104.0,0.8948]
[1759144754983,0.64967438,4104.1,4104.0,1.1448]
[1759144755184,0.44107438,4104.1,4104.0,1.1448]
[1759144756279,0.44107438,4104.1,4104.0,0.8948]
[1759144756485,0.77357438,4104.1,4104.0,1.1448]
[1759144757379,0.44107438,4104.1,4104.0,1.1448]
[1759144758286,0.00269438,4104.1,4104.0,1.5832]
[1759144758478,0.44107438,4104.1,4104.0,1.1448]
[1759144758678,0.77084,4104.5,4104.4,0.4397]
[1759144758983,0.77084,4104.5,4104.4,3.8975]
[1759144758984,1.33184,4104.5,4104.4,3.8975]
[1759144759174,0.5411,4104.5,4104.4,4.2348]
[1759144759375,0.43831,4104.8,4104.7,0.224]
[1759144759579,0.43831,4104.8,4104.7,1.027]
[1759144759783,0.98201946,4104.8,4104.7,1.027]
[1759144760087,0.44090946,4104.8,4104.7,1.027]
[1759144760478,0.00260946,4104.8,4104.7,1.46532]
[1759144760788,0.00260946,4104.8,4104.7,1.027]
[1759144760988,0.44091946,4104.8,4104.7,1.027]
[1759144761486,1.20321946,4104.8,4104.7,0.777]
[1759144761693,1.20321946,4104.8,4104.7,1.027]
[1759144763988,1.20321946,4104.8,4104.7,0.777]
[1759144764186,1.20321946,4104.8,4104.7,0.4657]
[1759144764389,1.31004,4104.5,4104.4,3.7614]
[1759144764688,1.31004,4104.5,4104.4,4.0114]
[1759144766093,1.31004,4104.5,4104.4,4.2348]
[1759144767294,1.17464,4104.5,4104.4,4.2348]
[1759144767991,0.43834,4104.5,4104.4,4.2348]
[1759144772089,0.96744,4104.5,4104.4,3.9848]
[1759144772390,1.31004,4104.5,4104.4,3.9848]
[1759144772592,1.31004,4104.5,4104.4,3.2078]
[1759144772791,1.17467,4104.2,4104.1,0.8013]
[1759144773085,0.43839,4104.0,4103.9,3.2078]
[1759144773391,1.31009,4104.0,4103.9,3.4578]
[1759144774689,6.31009,4104.0,4103.9,3.2078]
[1759144774893,6.31009,4104.0,4103.9,3.4578]
[1759144779390,6.31009,4104.0,4103.9,3.6838]
[1759144779391,1.31009,4104.0,4103.9,3.6838]
[1759144779793,1.17469,4104.0,4103.9,4.2348]
[1759144779987,0.96749,4104.0,4103.9,4.2348]
[1759144781394,1.31009,4104.0,4103.9,3.4338]
[1759144781592,1.31009,4104.0,4103.9,3.4578]
[1759144783799,1.31009,4104.0,4103.9,3.6838]
[1759144784599,1.31009,4104.0,4103.9,3.4338]
[1759144784896,1.31009,4104.0,4103.9,3.6838]
[1759144786397,1.31009,4104.0,4103.9,4.2348]
[1759144788289,0.96749,4104.0,4103.9,4.2348]
[1759144788494,0.43839,4104.0,4103.9,4.2348]
[1759144790602,0.43838,4104.0,4103.9,4.2348]
[1759144791805,0.43838,4104.1,4103.9,4.2348]
[1759144791999,0.43838,4104.1,4104.0,0.5822]
[1759144792205,0.43838,4104.1,4104.0,0.9098]
[1759144792503,3.2078,4104.7,4104.6,0.4494]
[1759144792504,3.86422,4104.7,4104.6,0.4494]
[1759144792803,0.43832,4104.7,4104.6,1.027]
[1759144793203,0.65642,4104.7,4104.6,1.027]
[1759144793403,0.96742,4104.7,4104.6,1.027]
[1759144794106,0.43832,4104.7,4104.6,1.027]
[1759144794604,1.21012,4104.7,4104.6,1.027]
[1759144798006,0.98342,4104.7,4104.6,1.027]
[1759144798196,0.43832,4104.7,4104.6,1.027]
[1759144799901,0.44091946,4104.8,4104.7,0.5303]
[1759144800104,0.44091946,4104.8,4104.7,0.7438]
[1759144800507,0.44091946,4104.8,4104.7,1.18212]
[1759144800508,0.00260946,4104.8,4104.7,1.18212]
[1759144801310,0.00260946,4104.8,4104.7,0.7438]
[1759144802213,0.00260946,4104.8,4104.7,1.18212]
[1759144804514,0.44090946,4104.8,4104.7,0.7438]
[1759144804708,1.21270946,4104.8,4104.7,0.7438]
[1759144805008,1.21270946,4104.8,4104.7,0.9938]
[1759144806417,0.98600946,4104.8,4104.7,0.9938]
[1759144807614,0.65100946,4104.8,4104.7,0.9938]
[1759144808010,0.00260946,4104.8,4104.7,1.43212]
[1759144810014,0.00260946,4104.8,4104.7,3.26685583]
[1759144810513,0.00260946,4104.8,4104.7,1.52112]
[1759144811008,0.21270946,4104.8,4104.7,0.8328]
[1759144811214,0.77440946,4104.8,4104.7,2.83149884]
[1759144811919,1.21271946,4104.8,4104.7,2.58149884]
[1759144812121,1.21271946,4104.8,4104.7,2.83149884]
[1759144812418,0.77440946,4104.8,4104.7,2.83149884]
[1759144813021,1.21270946,4104.8,4104.7,2.83149884]
[1759144814012,1.21270946,4104.8,4104.7,2.58149884]
[1759144814322,1.21270946,4104.8,4104.7,2.83149884]
[1759144815423,1.21270946,4104.8,4104.7,1.0828]
[1759144817428,0.00260946,4104.8,4104.7,1.0828]
[1759144818231,0.00260946,4104.8,4104.7,1.52112]
[1759144823223,0.00260946,4104.8,4104.7,1.27112]
[1759144823423,0.00260946,4104.8,4104.7,1.52112]
[1759144828037,0.00260946,4104.8,4104.7,1.27112]
[1759144828235,0.00260946,4104.8,4104.7,1.52112]
[1759144830647,0.00260946,4104.8,4104.7,41.69210312]
[1759144832753,0.00260946,4104.8,4104.7,3.69710312]
[1759144833854,0.00260946,4104.8,4104.7,3.44710312]
[1759144834055,0.00260946,4104.8,4104.7,3.69710312]
[1759144834749,0.00260946,4104.8,4104.7,3.44710312]
[1759144834956,0.00260946,4104.8,4104.7,41.69210312]
[1759144835556,0.00260946,4104.8,4104.7,3.44710312]
[1759144835754,0.75890946,4104.8,4104.7,3.00879312]
[1759144836055,0.75890946,4104.8,4104.7,1.0828]
[1759144836653,1.19720946,4104.8,4104.7,0.5122]
[1759144836859,1.19720946,4104.8,4104.7,0.339]
[1759144838955,1.19720946,4104.8,4104.7,0.089]
[1759144839157,1.19720946,4104.8,4104.7,0.339]
[1759144840457,1.19720946,4104.8,4104.7,0.089]
[1759144840653,1.19720946,4104.8,4104.7,0.339]
[1759144844464,1.19720946,4104.8,4104.7,0.5478]
[1759144850864,1.19720946,4104.8,4104.7,1.104]
[1759144851063,0.00260946,4104.8,4104.7,3.29415192]
[1759144851270,0.00260946,4104.8,4104.7,1.54231]
[1759144852272,0.00260946,4104.8,4104.7,1.104]
[1759144852660,0.44090946,4104.8,4104.7,1.104]
[1759144854461,0.00260946,4104.8,4104.7,1.104]
[1759144855172,0.00260946,4104.8,4104.7,1.103]
[1759144855471,0.00260946,4104.8,4104.7,1.54131]
[1759144856175,0.00260946,4104.8,4104.7,1.103]
[1759144857176,0.00260946,4104.8,4104.7,1.54131]
[1759144858570,0.43825,4105.3,4105.2,0.7645]
[1759144858770,0.96525,4105.3,4105.2,1.1025]
[1759144859471,0.96749254,4105.3,4105.2,1.10475527]
[1759144859869,1.18509254,4105.3,4105.2,1.10475527]
[1759144864685,1.18509254,4105.3,4105.2,0.34025527]
[1759144864880,1.18509254,4105.3,4105.2,0.09125527]
[1759144865178,1.18509254,4105.3,4105.2,0.34025527]
[1759144865575,1.18509254,4105.3,4105.2,0.56245527]
[1759144865984,1.18509254,4105.3,4105.2,0.34025527]
[1759144866584,1.18509254,4105.3,4105.2,0.09125527]
[1759144866883,6.18509254,4105.3,4105.2,0.34025527]
[1759144867581,6.18509254,4105.3,4105.2,0.88275527]
[1759144867977,1.18509254,4105.3,4105.2,1.10475527]
[1759144870186,0.74684254,4105.3,4105.2,1.10475527]
[1759144870379,1.18509254,4105.3,4105.2,1.10475527]
[1759144870579,0.52924254,4105.3,4105.2,1.10475527]
[1759144870780,0.00224254,4105.3,4105.2,1.10475527]
[1759144872191,0.00224254,4105.3,4105.2,1.54301527]
[1759144873494,0.00224254,4105.3,4105.2,3.29268323]
[1759144873788,0.96749254,4105.3,4105.2,2.60542323]
[1759144873994,1.18509254,4105.3,4105.2,0.34025527]
[1759144874295,1.18509254,4105.3,4105.2,0.88275527]
[1759144874490,1.18509254,4105.3,4105.2,1.10475527]
[1759144874689,1.18509254,4105.3,4105.2,0.56245527]
[1759144874991,1.18509254,4105.3,4105.2,0.88275527]
[1759144875881,1.18509254,4105.3,4105.2,0.34025527]
[1759144877488,1.18509254,4105.3,4105.2,0.09125527]
[1759144877685,1.18509254,4105.3,4105.2,0.34025527]
[1759144884398,1.18509254,4105.3,4105.2,0.09125527]
[1759144884598,1.18509254,4105.3,4105.2,0.34025527]
[1759144885995,1.18509254,4105.3,4105.2,0.09125527]
[1759144886199,1.18509254,4105.3,4105.2,0.34025527]
[1759144886388,4.39289254,4105.3,4105.2,0.09125527]
[1759144886588,4.39289254,4105.3,4105.2,0.34025527]
[1759144886800,9.39289254,4105.3,4105.2,0.34025527]
[1759144887594,0.4431,4104.7,4104.6,1.74966796]
[1759144887795,0.43835,4104.4,4104.3,1.96996796]
[1759144888095,1.22035,4104.4,4104.3,2.77966796]
[1759144888294,0.3389,4104.7,4104.4,0.3374]
[1759144888606,0.4383,4104.8,4104.7,0.781]
[1759144888796,0.4383,4104.8,4104.7,2.78114047]
[1759144888991,0.7772,4104.8,4104.7,2.78114047]
[1759144889304,1.0012,4104.8,4104.7,2.78114047]
[1759144889896,1.0012,4104.8,4104.7,2.53214047]
[1759144890100,1.0012,4104.8,4104.7,2.78114047]
[1759144890500,1.2203,4104.8,4104.7,2.78114047]
[1759144891703,0.1364,4105.0,4104.6,3.2078]
[1759144891704,1.22031,4104.7,4104.6,4.95894047]
[1759144891908,1.22031,4104.7,4104.6,5.42824047]
[1759144892096,1.22031,4104.7,4104.6,4.95894047]
[1759144892298,1.22031,4104.7,4104.6,3.4568]
[1759144893897,0.1364,4105.0,4104.4,0.22329612]
[1759144893898,1.01784,4104.5,4104.4,0.22329612]
[1759144894097,1.35674,4104.5,4104.4,0.80969612]
[1759144895901,0.43831,4104.7,4104.6,0.781]
[1759144896103,0.43831,4104.7,4104.6,1.03]
[1759144896300,1.22031,4104.7,4104.6,0.2203]
[1759144896603,1.22031,4104.7,4104.6,0.4693]
[1759144898909,1.22031,4104.7,4104.6,0.2203]
[1759144899102,1.22031,4104.7,4104.6,0.4693]
[1759144900513,1.22031,4104.7,4104.6,0.2203]
[1759144900703,1.22031,4104.7,4104.6,0.4693]
[1759144901108,1.22031,4104.7,4104.6,0.2203]
[1759144901410,1.22031,4104.7,4104.6,0.4693]
[1759144903013,1.22031,4104.7,4104.6,0.2203]
[1759144903308,1.22031,4104.7,4104.6,0.4693]
[1759144906516,0.782,4104.7,4104.4,0.00299612]
[1759144906710,1.35674,4104.5,4104.4,0.00299612]
[1759144907018,1.35674,4104.5,4104.4,0.25199612]
[1759144907213,1.35674,4104.5,4104.4,0.47229612]
[1759144907716,1.35674,4104.5,4104.4,0.80969612]
[1759144909514,1.35674,4104.5,4104.4,0.56069612]
[1759144909716,1.35674,4104.5,4104.4,0.80969612]
[1759144911415,1.22034,4104.5,4104.4,1.03299612]
[1759144915033,0.75741,4104.7,4104.6,0.4467]
[1759144915233,3.2078,4104.8,4104.7,1.19731]
[1759144915526,3.2078,4104.8,4104.7,1.44631]
[1759144915726,0.43829,4104.9,4104.7,1.13401]
[1759144915927,0.43829,4104.9,4104.8,0.759]
[1759144916230,0.43829,4104.9,4104.7,2.43845047]
[1759144916231,0.75737,4105.1,4105.0,0.4467]
[1759144916422,0.75737,4105.1,4105.0,1.008]
[1759144917022,0.96377,4105.1,4105.0,1.008]
[1759144919724,0.75737,4105.1,4105.0,1.008]
[1759144919921,0.75737,4105.1,4105.0,1.1442]
[1759144920130,0.5255,4105.1,4105.0,1.008]
[1759144920429,0.00224254,4105.3,4105.2,0.759]
[1759144920822,0.44049254,4105.3,4105.2,0.759]
[1759144921022,0.32134254,4105.3,4105.2,0.759]
[1759144921226,0.00224254,4105.3,4105.2,4.40506]
[1759144921424,1e-08,4105.3,4105.2,9.40506]
[1759144921623,0.3191,4105.9,4105.8,0.759]
[1759144921921,0.96367,4106.1,4106.0,0.759]
[1759144922429,0.5255,4106.1,4106.0,0.8854]
[1759144922632,0.52809742,4106.1,4106.0,0.8854]
[1759144923034,0.96625742,4106.1,4106.0,0.8854]
[1759144923332,0.96625742,4106.1,4106.0,0.759]
[1759144923628,1.18785742,4106.1,4106.0,0.759]
[1759144925026,1.18785742,4106.1,4105.3,0.2196]
[1759144925027,0.428,4105.4,4105.3,0.2196]
[1759144925320,0.43825,4105.3,4105.2,3.2078]
[1759144925529,0.43828,4105.0,4104.9,1.74904079]
[1759144925729,0.43828,4105.0,4104.7,3.2078]